Cogmind - Beta 13 @@@ ROGUE MODE // 2024.04.02 @ 10:11:00 Player: Olafz Result: Destroyed by G-34 Mercenary with Small Laser Performance ------------- Evolutions (1) 500 Regions Visited (2) 400 Robots Destroyed (7) 35 Value Destroyed (170) 170 Prototype IDs (0) 0 Alien Tech Used (0) 0 Bonus (200) 200 TOTAL SCORE: 1305 Bonus ------- Pacifist 200 Cogmind --------- Core Integrity 0/400 Matter 284/300 Energy 100/100 System Corruption 0% Temperature Cool (15) Movement Core (150) Ox2 Location -9/Materials Parts ------- > --- POWER (1) -------- (None) > --- PROPULSION (2) --- (None) > --- UTILITY (4) ------ Small Storage Unit > --- WEAPON (2) ------- Heavy Assault Rifle > --- INVENTORY (8) ---- Light Ion Engine Hover Unit High-capacity Storage Unit Datajack Peak State ------------ > --- POWER ------------ Ion Engine > --- PROPULSION ------- Aluminum Leg Aluminum Leg > --- UTILITY ---------- Small Storage Unit High-capacity Storage Unit > --- WEAPON ----------- Small Laser Light Assault Rifle > --- INVENTORY -------- Light Ion Engine Hover Unit Datajack [Rating: 7] Favorites ----------- Power Ion Engine Engine Ion Engine Propulsion Aluminum Leg Leg Aluminum Leg Utility Small Storage Unit Storage Small Storage Unit Weapon Light Assault Rifle Energy Gun Small Laser Ballistic Gun Light Assault Rifle Build | -11 -10 -9 ------- Run | Yrd Mat Mat Slots Evolved 2 | . . 2 Power . | . . . Propulsion . | . . . Utility 2 | . . 2 Weapon . | . . . Parts Attached 11 | 7 2 2 Power 2 | 2 . . Engine 2 | 2 . . Core . | . . . Reactor . | . . . Propulsion 3 | 2 1 . Treads . | . . . Leg 3 | 2 1 . Wheel . | . . . Hover . | . . . Flight . | . . . Utility 2 | 1 . 1 Device . | . . . Storage 2 | 1 . 1 Processor . | . . . Hackware . | . . . Protection . | . . . Artifact . | . . . Weapon 4 | 2 1 1 Energy Gun 1 | 1 . . Energy Cannon . | . . . Ballistic Gun 3 | 1 1 1 Ballistic Cannon . | . . . Launcher . | . . . Special Weapon . | . . . Impact Weapon . | . . . Slashing Weapon . | . . . Piercing Weapon . | . . . Special Melee Weapon . | . . . Unidentified Prototypes . | . . . Parts Lost 5 | . . 5 Power 1 | . . 1 Propulsion 2 | . . 2 Utility . | . . . Weapon 2 | . . 2 Highest Loss Streak 5 | . . 5 To Critical Strikes 1 | . . 1 Average Slot Usage (%) 73 | . 85 60 Engine 12 | . 14 10 Leg 23 | . 28 18 Storage 12 | . 14 11 Energy Gun 12 | . 14 9 Ballistic Gun 12 | . 14 10 Naked Turns . | . . . Heaviest Build 12 | 12 12 12 Greatest Support 20 | 20 20 20 Greatest Overweight (x) 3 | . 1 3 Average Overweight (x) . | . . . Largest Inventory Capacity 20 | 8 8 20 Average Capacity 7 | 6 8 8 Most Carried 4 | 1 2 4 Average Carried 2 | . 1 3 Final Capacity 8 | 8 8 8 Final Carried 4 | 1 2 4 Class Distribution -------------------- 100% | Mutant Dominant Class ---------------- Mutant | -10/Materials Mutant | -9/Materials Resources | -11 -10 -9 ----------- Run | Yrd Mat Mat Matter Collected 311 | 257 . 54 Remotely . | . . . Salvage Created 258 | . . 258 Parts 15 | . . 15 Haulers Intercepted . | . . . Recyclers Shooed . | . . . Parts Field Recycled . | . . . Retrieved Matter . | . . . Parts Self-Destructed . | . . . Prevented . | . . . Kills | -11 -10 -9 ------- Run | Yrd Mat Mat Combat Hostiles Destroyed 4 | . . 4 Guns 4 | . . 4 Classes Destroyed 5 | . . 5 Worker 1 | . . 1 Recycler 1 | . . 1 Operator 1 | . . 1 Grunt 3 | . . 3 Sentry 1 | . . 1 Best Kill Streak 4 | . . 4 Combat Bots Only 2 | . . 2 Max Kills in Single Turn 1 | . . 1 Gunslinging . | . . . Exploded . | . . . Melee . | . . . Uniques/NPCs Destroyed . | . . . Combat | -11 -10 -9 -------- Run | Yrd Mat Mat Hostile Shots Fired 87 | . . 87 Missed 23 | . . 23 Damage Taken 883 | . . 883 Core 411 | . . 411 Absorbed by Shields . | . . . Core Remaining (%) 100 | 100 100 . Volleys Fired 34 | . 5 29 Largest 2 | . 2 2 Hottest 60 | . 60 60 Shots Fired 56 | . 9 47 Gun 56 | . 9 47 Cannon . | . . . Launcher . | . . . Special . | . . . Kinetic 34 | . 5 29 Thermal 22 | . 4 18 Explosive . | . . . Electromagnetic . | . . . Robot Hit Streak 9 | . 3 9 Robot Miss Streak 5 | . 3 5 Penetration Max . | . . . Secondary Targets 1 | . . 1 Max Gunslinging Chain 1 | . . 1 Shots Hit Robots 37 | . 5 32 Core Hits 16 | . 1 15 Critical Kills . | . . . Critical Parts Destroyed . | . . . Critical Strikes . | . . . Melee Attacks . | . . . Impact . | . . . Slashing . | . . . Piercing . | . . . Sneak Attacks . | . . . Combat Hostiles . | . . . Follow-up Attacks . | . . . Damage Inflicted 390 | . 48 342 Guns 390 | . 48 342 Cannons . | . . . Explosions . | . . . Melee . | . . . Ramming . | . . . Kinetic 190 | . 26 164 Thermal 200 | . 22 178 Explosive . | . . . Electromagnetic . | . . . Impact . | . . . Slashing . | . . . Piercing . | . . . Highest Corruption . | . . . Average Corruption . | . . . Corruption Purged . | . . . Corruption Blocked . | . . . Overload Shots . | . . . Overflow Damage . | . . . Projectiles . | . . . Explosions . | . . . Melee . | . . . Knockbacks . | . . . Impact . | . . . Kinetic . | . . . Secondary . | . . . Self-Inflicted Damage . | . . . Shots . | . . . Rammed . | . . . Targets Rammed 1 | . . 1 Kicked 1 | . . 1 Crushed . | . . . Highest Temperature 130 | . 20 130 Average Temperature 36 | . 15 38 Received Heat Transfer 435 | . . 435 Siege Activations . | . . . Robots Corrupted . | . . . Combat Hostiles . | . . . Parts Fried . | . . . Impact Corruptions . | . . . Robots Melted . | . . . Combat Hostiles . | . . . Parts Melted . | . . . Heat Transferred 450 | . 50 400 Parts Sabotaged . | . . . Parts Stolen . | . . . Parts Stripped . | . . . Power Chain Reactions . | . . . Alert | -11 -10 -9 ------- Run | Yrd Mat Mat Peak Influence 98 | . 20 98 Initial 8 | . . 8 Average 21 | . 12 39 Maximum Alert Level . | . . . Low Security (%) 100 | 100 100 100 Level 1 . | . . . Level 2 . | . . . Level 3 . | . . . Level 4 . | . . . Level 5 . | . . . High Security . | . . . Max Security . | . . . Squads Dispatched 2 | . . 2 Investigation 1 | . . 1 Extermination . | . . . Reinforcement 1 | . . 1 Assault . | . . . Garrison . | . . . Intercept . | . . . Searches Triggered . | . . . Construction Impeded . | . . . Haulers Reinforced . | . . . Active Scanning Responses . | . . . Cargo Convoy Interrupts . | . . . Stealth | -11 -10 -9 --------- Run | Yrd Mat Mat Distress Signals 1 | . . 1 Communications Jammed . | . . . Distress Signals . | . . . Times Spotted 11 | . 2 9 Peak Tracking Total 6 | . 2 6 Tactical Retreats . | . . . Traps | -11 -10 -9 ------- Run | Yrd Mat Mat Traps Triggered 2 | . 1 1 Indirectly . | . . . Trap Hack Attempts . | . . . Triggered . | . . . Disarmed . | . . . Reprogrammed . | . . . Reused . | . . . Traps Extracted . | . . . Installed . | . . . Triggered . | . . . Machines | -11 -10 -9 ---------- Run | Yrd Mat Mat Machines Disabled . | . . . Max in Single Turn . | . . . Machines Repaired . | . . . Machines Dismantled . | . . . Machines Sabotaged . | . . . Overloaded Fab Kills . | . . . Hacking | -11 -10 -9 --------- Run | Yrd Mat Mat Machines Accessed 1 | . 1 . Terminals 1 | . 1 . Fabricators . | . . . Repair Stations . | . . . Recycling Units . | . . . Scanalyzers . | . . . Garrison Access . | . . . Total Hacks 2 | . 2 . Successful 1 | . 1 . Failed 1 | . 1 . Catastrophic . | . . . Database Lockouts . | . . . Manual 2 | . 2 . Terminals 2 | . 2 . Fabricators . | . . . Repair Stations . | . . . Recycling Units . | . . . Scanalyzers . | . . . Garrison Access . | . . . Terminal Hacks . | . . . Fabricator Hacks . | . . . Repair Station Hacks . | . . . Recycling Unit Hacks . | . . . Scanalyzer . | . . . Garrison Access Hacks . | . . . Unauthorized Hacks 1 | . 1 . Terminals 1 | . 1 . Botnet 1 | . 1 . Fabricators . | . . . Repair Stations . | . . . Recycling Units . | . . . Scanalyzers . | . . . Garrison Access . | . . . Data Cores Recovered . | . . . Used . | . . . Hacking Detections . | . . . Full Trace Events . | . . . Feedback Events . | . . . Feedback Blocked . | . . . Robot Schematics Acquired . | . . . Robots Built . | . . . Authchips . | . . . Time . | . . . Total Robot Build Rating . | . . . Part Schematics Acquired . | . . . Parts Built . | . . . Authchips . | . . . Time . | . . . Total Part Build Rating . | . . . Parts Repaired . | . . . Time . | . . . Parts Recycled . | . . . Recycled Matter . | . . . Retrieved Matter . | . . . Retrieved Components . | . . . Parts Scanalyzed . | . . . Part Schematics Acquired . | . . . Parts Damaged . | . . . Bothacking | -11 -10 -9 ------------ Run | Yrd Mat Mat Used RIF Installer . | . . . Robots Hacked . | . . . Non-combat . | . . . Combat . | . . . Robot Hacks Applied . | . . . Relay Couplers Released . | . . . Fabnet Peak Effective % . | . . . Robots Rewired . | . . . Allies Hacked . | . . . Hacks Repelled . | . . . Allies | -11 -10 -9 -------- Run | Yrd Mat Mat Total Allies . | . . . Largest Group . | . . . Highest-Rated Group . | . . . Highest-Rated Ally . | . . . Total Orders . | . . . Ally Attacks . | . . . Total Damage . | . . . Kills . | . . . Allies Corrupted . | . . . Allies Melted . | . . . Intel | -11 -10 -9 ------- Run | Yrd Mat Mat Robot Analysis Total . | . . . Derelict Logs Recovered . | . . . Drone Launches . | . . . Drone Recoveries . | . . . Exploration | -11 -10 -9 ------------- Run | Yrd Mat Mat Turns Passed 485 | 72 219 194 Spaces Moved 320 | 55 168 97 Core 11 | 6 . 5 Treads . | . . . Legs 309 | 49 168 92 Wheels . | . . . Hover . | . . . Flight . | . . . Fastest Speed 50 | 50 120 100 Average Speed 119 | 112 120 121 Slowest Speed 200 | 120 190 200 Overloaded Moves . | . . . Propulsion Burnouts . | . . . Robots Hopped . | . . . Cave-ins Triggered . | . . . Exploration Rate (%) 16 | 5 35 10 Regions Visited 2 Branch Regions . Pre-discovered Areas . | . . . Known Exits Taken . | . . . Unknown Exits Taken 2 | 1 1 . Scrap Searched . | . . . Spaces Dug . | . . . Terrain Destroyed . | . . . Melee . | . . . Projectile . | . . . AOE . | . . . Terrain Rammed . | . . . Walls Destroyed . | . . . Machines Disabled . | . . . Actions | -11 -10 -9 --------- Run | Yrd Mat Mat Total 367 | 61 175 131 Wait . | . . . Move 318 | 54 167 97 Hop . | . . . Pick Up 2 | . 1 1 Fast Attach 10 | 6 2 2 Attach . | . . . Detach 1 | . . 1 Swap 1 | 1 . . Drop . | . . . Fire 34 | . 5 29 Melee . | . . . Ram . | . . . Kick 1 | . . 1 Crush . | . . . Escape Stasis . | . . . Rewire . | . . . Trap . | . . . Miscellaneous . | . . . Route ------- -11/Scrapyard -10/Materials -9/Materials History --------- Turn | Location | Event 4 | -11/Scrapyard | Discovered new exit (range 15) 73 | -11/Scrapyard | Entered Materials 251 | -10/Materials | Discovered new exit (range 7) 292 | -10/Materials | Entered another Materials area 292 | -9/Materials | Evolved 2 slots: Utility x2 309 | -9/Materials | Build established: Mutant 469 | -9/Materials | Core integrity fell below 50% 480 | -9/Materials | Core integrity fell below 20% 486 | -9/Materials | Destroyed by G-34 Mercenary with Small Laser Last Messages --------------- 00454_ R-06 Scavenger collects Med. Matter Pod. 00456_ Aluminum Leg destroyed. 00460_ K-01 Serf collects debris. 00460_ Critical hit (Destroy). 00460_ Sml. Laser destroyed. 00463_ R-06 Scavenger collects Heat Sink. 00464_ K-01 Serf collects debris. 00466_ U-05 Engineer lays Concrete. 00469_ R-06 Scavenger collects Aluminum Leg. 00469_ K-01 Serf collects debris. 00470_ U-05 Engineer destroyed. 00470_ Y-45 Defender destroyed. 00472_ Critical hit (Burn: +37). 00472_ K-01 Serf collects debris. 00476_ Ion Engine destroyed. 00476_ G-34 Mercenary destroyed. 00477_ Lgt. Assault Rifle destroyed. 00480_ K-01 Serf collects debris. 00481_ Acquired Hvy. Assault Rifle. 00484_ K-01 Serf collects debris. Map ----- +----------------------------------------------------+ | ?????????????????????????????????????????????????? | | ?????????????????????????????????????????????????? | | ?????????????????????????????????????????????????? | | ?????????????????????????????????????????????????? | | ?????????????????????????????????????????????????? | | ?????????????????????????????????????????????????? | | ????#######??????????????????????????????????????? | | ##### #??????????????????????????????????????? | | #??????????????????????????????????????? | | #??????????????????????????????????????? | | #??????????????????????????????????????? | | #+### #??????????????????????????????????????? | | ## ##??????????????????????????????????????? | | ## #???????????????????????????????????????? | | ## #???????????????????????????????????????? | | """ ## ########????????????????????????????????? | | """ ## ## #???????????????????????????????? | | """ ## ## #???????????????????????????????? | | ###### ## """" #???????????????????????????????? | | # ## """" #???????????????????????????????? | | "" T # ## """" ????????????????????????????????? | | "" # ## ????????????#?????????????????????? | | "" / ###+#############+######+### ?????????? | | # [ k * Y ????????? | | "" # =%* !%| !=g ????????? | | "" # ! = ! =%@ %[ g u ????????? | | "" [ #######+########+###########/#??????????????? | | #???? #????? ??????????????????????????? | | ######?? #????? ??????????????????????????? | | ???????# #???? ?????????????????????????? | | ???????# #???? ?????????????????????????? | | ???????# #??? ????????????????????????? | | ???????# #??? ????????????????????????? | | ???????########?? ???????????????????????? | | ????????????????? ???????????????????????? | | ????????????????###########??????????????????????? | | ?????????????????????????????????????????????????? | | ?????????????????????????????????????????????????? | | ?????????????????????????????????????????????????? | | ?????????????????????????????????????????????????? | | ?????????????????????????????????????????????????? | | ?????????????????????????????????????????????????? | | ?????????????????????????????????????????????????? | | ?????????????????????????????????????????????????? | | ?????????????????????????????????????????????????? | | ?????????????????????????????????????????????????? | | ?????????????????????????????????????????????????? | | ?????????????????????????????????????????????????? | | ?????????????????????????????????????????????????? | | ?????????????????????????????????????????????????? | +----------------------------------------------------+ Best States ------------- Heat Dissipation 28 Energy Generation 10 Energy Capacity 250 Matter Stores 300 Matter Capacity 300 Sight Range 16 Terrain Scan Density 10 Evasion (%) 55 Item Schematics ----------------- None Robot Schematics ------------------ None Fabricated ------------ Nothing Alien Tech Used ----------------- None Achievements -------------- None Challenges ------------ None Game ------ Seed ReactionSupersonicBeam Manual? 0 Play Time 00:07:36 Cumulative 12.9 hours Start 2024.04.02 @ 09:53:01 End 2024.04.02 @ 10:11:00 Sessions 1 Manual Loads 0 Difficulty Rogue Special Mode None Game No. 38 Rogue 36 Adventurer 2 Explorer 0 Win Type - Total 0 Types 0/0/0/0/0/0/0/0/0 Lore% 16 Gallery% 17 Achievement% 17 Wizard Run 0 Options --------- Layout 0 ASCII 0 Keyboard 1 Movement Arrows Keybinds 0 Fullscreen 2 Font 18/SmallcapsGlow Map View 76x50 Zoom Use 0% Tactical HUD 1 Map Filters NONE Filters NONE Steam 1 RUN: 8cdb1b81-9631-417d-b8eb-9a7402fdc3fa